fUSD/lending_fUSD_20260409
["ID","MTS","AMOUNT","RATE_DAILY","PERIOD"]
[420128460,1775704244306,-151.0,0.00012505,2]
[420128461,1775704244315,-224.521189,0.00012505,2]
[420128462,1775704244324,-224.521189,0.00012505,2]
[420128463,1775704244334,-224.521189,0.00012505,2]
[420128464,1775704244343,-224.521189,0.00012505,2]
[420128465,1775704244353,-151.0,0.00012505,2]
[420128466,1775704244362,-151.0,0.00012505,2]
[420128467,1775704244371,-1000.165167,0.00012505,2]
[420128468,1775704244381,-1000.165167,0.00012505,2]
[420128469,1775704244391,-1000.165167,0.00012505,2]
[420128470,1775704244400,-1000.165167,0.00012505,2]
[420128471,1775704244410,-956.923576,0.00012505,2]
[420128472,1775704244419,-956.923576,0.00012505,2]
[420128473,1775704244428,-956.923576,0.00012505,2]
[420128474,1775704244437,-956.923576,0.00012505,2]
[420128475,1775704244447,-407455.018161,0.00012505,2]
[420128476,1775704244466,-928.446931,0.00012509,2]
[420128477,1775704244478,-499.568341,0.00012509,2]
[420128478,1775704244487,-849.333451,0.00012517,2]
[420128479,1775704244497,-152.0,0.00012524,10]
[420128480,1775704244506,-37353.14668503,0.00012546,2]
[420128481,1775704244515,-1045.40345364,0.00012575,2]
[420128482,1775704244525,-163.12,0.00012675,2]
[420128483,1775704244535,-200.0,0.0001274,2]
[420128484,1775704244544,-152.0,0.00012756,11]
[420128485,1775704244554,-573.592394,0.00012772,2]
[420128486,1775704244563,-936.898683,0.00012772,2]
[420128487,1775704244573,-166.66,0.00012775,2]
[420128488,1775704244582,-517.0,0.00012789,3]
[420128489,1775704244592,-380.25869828,0.00012878,2]
[420128490,1775704244601,-9200.0,0.000129,4]
[420128491,1775704244611,-1100.0,0.000129,4]
[420128492,1775704244620,-159.121307,0.00012925,2]
[420128493,1775704244630,-172382.9405861,0.00012928,2]
[420128494,1775704244639,-5874.61,0.00012977,2]
[420128495,1775704244648,-224.521189,0.00012978,2]
[420128496,1775704244658,-224.521189,0.00012978,2]
[420128497,1775704244667,-224.521189,0.00012978,2]
[420128498,1775704244676,-224.521193,0.00012978,2]
[420128499,1775704244686,-173.53559583,0.00012984,2]
[420128500,1775704244695,-152.0,0.00012989,12]
[420128501,1775704244705,-1000.165167,0.00012992,2]
[420128502,1775704244714,-1000.165167,0.00012992,2]
[420128503,1775704244724,-1000.165167,0.00012992,2]
[420128504,1775704244733,-1000.165158,0.00012992,2]
[420128505,1775704244742,-330.81,0.00013,30]
[420128506,1775704244752,-250.0,0.00013,2]
[420128507,1775704244762,-458.99867867,0.00013007,2]
[420128508,1775704244772,-317.56,0.00013064,2]
[420128509,1775704244782,-37353.14668503,0.00013079,2]
[420128510,1775704244792,-502.0,0.000131,2]
[420128511,1775704244802,-2000.0,0.00013109,2]
[420128512,1775704244812,-2014.34,0.00013122,2]
[420128513,1775704244822,-151.0,0.00013169,2]
[420128514,1775704244831,-153.308735,0.00013169,2]
[420128515,1775704244840,-8321.53585143,0.00013194,2]
[420128516,1775704244850,-152.0,0.00013221,13]
[420128517,1775704244860,-155.64852211,0.00013221,5]
[420128518,1775704244869,-1600.0,0.00013268,2]
[420128519,1775704244878,-200.0,0.00013288,2]
[420128520,1775704244889,-2000.0,0.000133,2]
[420128521,1775704244898,-239.31072661,0.0001332,2]
[420128522,1775704244908,-307.60106223,0.0001332,2]
[420128523,1775704244919,-956.923576,0.00013334,2]
[420128524,1775704244929,-956.923576,0.00013334,2]
[420128525,1775704244939,-956.923576,0.00013334,2]
[420128526,1775704244950,-956.92357,0.00013334,2]
[420128527,1775704244960,-601.3376128,0.00013334,2]
[420128528,1775704244970,-200.0,0.00013334,2]
[420128529,1775704244980,-578.20924308,0.00013334,2]
[420128530,1775704244990,-174.61919141,0.00013334,2]
[420128531,1775704245000,-500.0,0.00013334,2]
[420128532,1775704245010,-7965.41053268,0.00013334,2]
[420128533,1775704245020,-151.0,0.00013334,2]
[420128534,1775704245029,-151.0,0.00013334,2]
[420128535,1775704245039,-151.0,0.00013334,2]
[420128536,1775704245049,-162.00740209,0.00013334,2]
[420128537,1775704245059,-1191.11104075,0.00013334,2]
[420128538,1775704245068,-743.50770149,0.00013334,2]
[420128539,1775704245078,-178.09177821,0.00013334,2]
[420128540,1775704245088,-1500.0,0.00013334,2]
[420128541,1775704245097,-1500.0,0.00013334,2]
[420128542,1775704245107,-160.71220784,0.00013334,2]
[420128543,1775704245116,-1500.0,0.00013334,2]
[420128544,1775704245125,-1500.0,0.00013334,2]
[420128545,1775704245135,-1500.0,0.00013334,2]
[420128546,1775704245144,-151.0,0.00013334,2]
[420128547,1775704245154,-1500.0,0.00013334,2]
[420128548,1775704245163,-1612.05314765,0.00013334,2]
[420128549,1775704245172,-174.61919141,0.00013334,2]
[420128550,1775704245182,-578.20924308,0.00013334,2]
[420128551,1775704245192,-175.89177646,0.00013334,2]
[420128552,1775704245203,-1500.0,0.00013334,2]
[420128553,1775704245212,-1534.61860967,0.00013334,2]
[420128554,1775704245222,-279.9045709,0.00013334,2]
[420128555,1775704245232,-170.0,0.00013334,2]
[420128556,1775704245241,-170.0,0.00013334,2]
[420128557,1775704245251,-170.0,0.00013334,2]
[420128558,1775704245260,-170.0,0.00013334,2]
[420128559,1775704245270,-170.0,0.00013334,2]
[420128560,1775704245279,-170.0,0.00013334,2]
[420128561,1775704245293,-170.0,0.00013334,2]
[420128562,1775704245303,-170.0,0.00013334,2]
[420128563,1775704245313,-170.0,0.00013334,2]
[420128564,1775704245322,-170.0,0.00013334,2]
[420128565,1775704245332,-170.0,0.00013334,2]
[420128566,1775704245342,-170.0,0.00013334,2]
[420128567,1775704245352,-170.0,0.00013334,2]
[420128568,1775704245362,-170.0,0.00013334,2]
[420128569,1775704245371,-170.0,0.00013334,2]
[420128570,1775704245381,-168.70890056,0.00013334,2]
[420128571,1775704245391,-500.0,0.00013342,2]
[420128572,1775704245401,-500.0,0.00013389,2]
[420128573,1775704245411,-8260.13072239,0.00013389,2]
[420128574,1775704245420,-151.0,0.00013389,2]
[420128575,1775704245430,-163.12,0.0001342,2]
[420128576,1775704245440,-3240.0,0.00013425,2]
[420128577,1775704245450,-299.531417,0.00013425,2]
[420128578,1775704245460,-299.531417,0.00013425,2]
[420128579,1775704245469,-299.531417,0.00013425,2]
[420128580,1775704245479,-299.531417,0.00013425,2]
[420128581,1775704245489,-500.0,0.00013444,2]
[420128582,1775704245498,-8565.75555911,0.00013444,2]
[420128583,1775704245508,-151.0,0.00013444,2]
[420128584,1775704245517,-517.0,0.00013447,3]
[420128585,1775704245527,-542.91850223,0.0001345,2]
[420128586,1775704245537,-500.0,0.00013499,2]
[420128587,1775704245547,-8882.6885148,0.00013499,2]
[420128588,1775704245557,-151.0,0.00013499,2]
[420128589,1775704245567,-3000.0,0.00013534,2]
[420128590,1775704245576,-500.0,0.00013554,2]
[420128591,1775704245586,-9211.34798985,0.00013554,2]
[420128592,1775704245595,-151.0,0.00013554,2]
[420128593,1775704245605,-4609.0,0.0001357,2]
[420128594,1775704245614,-232.3046,0.000136,2]
[420128595,1775704245624,-2000.0,0.000136,2]
[420128596,1775704245634,-1152.0,0.00013604,2]
[420128597,1775704245644,-1252.0,0.00013605,2]
[420128598,1775704245653,-503.61549382,0.00013609,3]
[420128599,1775704245664,-500.0,0.00013609,2]
[420128600,1775704245673,-9552.16786547,0.00013609,2]
[420128601,1775704245683,-151.0,0.00013609,2]
[420128602,1775704245693,-37353.14668503,0.00013613,2]
[420128603,1775704245703,-500.0,0.00013664,2]
[420128604,1775704245713,-9905.5980765,0.00013664,2]
[420128605,1775704245723,-151.0,0.00013664,2]
[420128606,1775704245733,-159.121307,0.00013668,2]
[420128607,1775704245743,-299.531417,0.00013677,2]
[420128608,1775704245753,-299.531417,0.00013677,2]
[420128609,1775704245762,-299.531417,0.00013677,2]
[420128610,1775704245772,-299.531409,0.00013677,2]
[420128611,1775704245782,-407455.018161,0.00013677,2]
[420128612,1775704245792,-1124.60160444,0.00013689,2]
[420128613,1775704245801,-159.121307,0.00013695,2]
[420128614,1775704245811,-159.121307,0.00013695,2]
[420128615,1775704245821,-159.121307,0.00013696,2]
[420128616,1775704245830,-159.121307,0.00013696,2]
[420128617,1775704245840,-159.121307,0.00013696,2]
[420128618,1775704245849,-500.0,0.00013698,2]
[420128619,1775704245860,-503.38712912,0.00013698,2]
[420128620,1775704245869,-500.0,0.00013698,2]
[420128621,1775704245878,-500.0,0.00013698,2]
[420128622,1775704245888,-252.6,0.00013698,2]
[420128623,1775704245897,-500.0,0.00013698,2]
[420128624,1775704245907,-516.56,0.00013698,2]
[420128625,1775704245916,-500.0,0.00013698,2]
[420128626,1775704245926,-500.0,0.00013698,2]
[420128627,1775704245936,-174.56,0.00013698,2]
[420128628,1775704245947,-500.0,0.00013698,2]
[420128629,1775704245956,-490.0,0.00013698,2]
[420128630,1775704245966,-500.0,0.00013698,2]
[420128631,1775704245976,-500.0,0.00013698,2]
[420128632,1775704245985,-500.0,0.00013698,2]
[420128633,1775704245995,-509.11396522,0.00013698,2]
[420128634,1775704246004,-500.0,0.00013698,2]
[420128635,1775704246014,-500.0,0.00013698,2]
[420128636,1775704246024,-500.0,0.00013698,2]
[420128637,1775704246034,-502.4478995,0.00013698,2]
[420128638,1775704246044,-500.0,0.00013698,2]
[420128639,1775704246053,-471.90197381,0.00013698,2]
[420128640,1775704246063,-196.94913712,0.00013698,2]
[420128641,1775704246073,-500.0,0.00013698,2]
[420128642,1775704246083,-500.0,0.00013698,2]
[420128643,1775704246092,-500.0,0.00013698,2]
[420128644,1775704246102,-500.0,0.00013698,2]
[420128645,1775704246112,-500.0,0.00013698,2]
[420128646,1775704246122,-329.43599596,0.00013698,2]
[420128647,1775704246135,-500.0,0.00013698,2]
[420128648,1775704246145,-500.0,0.00013698,2]
[420128649,1775704246154,-219.90601371,0.00013698,2]
[420128650,1775704246165,-500.0,0.00013698,2]
[420128651,1775704246175,-500.0,0.00013698,2]
[420128652,1775704246185,-500.0,0.00013698,2]
[420128653,1775704246194,-500.0,0.00013698,2]
[420128655,1775704246204,-634.77288001,0.00013698,2]
[420128656,1775704246214,-500.0,0.00013698,2]
[420128657,1775704246224,-500.0,0.00013698,2]
[420128658,1775704246233,-277.55659601,0.00013698,2]
[420128659,1775704246243,-500.0,0.00013698,2]
[420128660,1775704246253,-500.0,0.00013698,2]
[420128661,1775704246262,-500.0,0.00013698,2]
[420128662,1775704246273,-500.0,0.00013698,2]
[420128663,1775704246283,-500.0,0.00013698,2]
[420128664,1775704246292,-500.0,0.00013698,2]
[420128665,1775704246302,-500.0,0.00013698,2]
[420128666,1775704246312,-500.0,0.00013698,2]
[420128667,1775704246322,-323.16,0.00013698,2]
[420128668,1775704246332,-500.0,0.00013698,2]
[420128669,1775704246341,-500.0,0.00013698,2]
[420128670,1775704246351,-500.0,0.00013698,2]
[420128671,1775704246361,-500.0,0.00013698,2]
[420128672,1775704246371,-500.0,0.00013698,2]
[420128673,1775704246381,-500.0,0.00013698,2]
[420128674,1775704246391,-500.0,0.00013698,2]
[420128675,1775704246400,-500.0,0.00013698,2]
[420128676,1775704246409,-500.0,0.00013698,2]
[420128677,1775704246419,-500.0,0.00013698,2]
[420128678,1775704246428,-500.0,0.00013698,2]
[420128679,1775704246438,-500.0,0.00013698,2]
[420128680,1775704246447,-603.88888953,0.00013698,2]
[420128681,1775704246457,-500.0,0.00013698,2]
[420128682,1775704246467,-500.0,0.00013698,2]
[420128683,1775704246478,-500.0,0.00013698,2]
[420128684,1775704246487,-378.9,0.00013698,2]
[420128685,1775704246497,-500.0,0.00013698,2]
[420128686,1775704246506,-500.0,0.00013698,2]
[420128687,1775704246516,-524.84,0.00013698,2]
[420128688,1775704246525,-500.0,0.00013698,2]
[420128689,1775704246535,-500.0,0.00013698,2]
[420128690,1775704246544,-500.0,0.00013698,2]
[420128691,1775704246555,-500.0,0.00013698,2]
[420128692,1775704246564,-500.0,0.00013698,2]
[420128693,1775704246573,-500.0,0.00013698,2]
[420128694,1775704246583,-174.56,0.00013698,2]
[420128695,1775704246593,-500.0,0.00013698,2]
[420128696,1775704246602,-500.0,0.00013698,2]
[420128697,1775704246612,-500.0,0.00013698,2]
[420128698,1775704246621,-500.0,0.00013698,2]
[420128699,1775704246631,-500.0,0.00013698,2]
[420128700,1775704246640,-500.0,0.00013698,2]
[420128701,1775704246651,-500.0,0.00013698,2]
[420128702,1775704246661,-500.0,0.00013698,2]
[420128703,1775704246671,-500.0,0.00013698,2]
[420128704,1775704246681,-500.0,0.00013698,2]
[420128705,1775704246691,-500.0,0.00013698,2]
[420128706,1775704246701,-500.0,0.00013698,2]
[420128707,1775704246711,-500.0,0.00013698,2]
[420128708,1775704246722,-500.0,0.00013698,2]
[420128709,1775704246731,-500.0,0.00013698,2]
[420128710,1775704246741,-500.0,0.00013698,2]
[420128711,1775704246751,-500.0,0.00013698,2]
[420128712,1775704246760,-500.0,0.00013698,2]
[420128713,1775704246770,-500.0,0.00013698,2]
[420128714,1775704246780,-500.0,0.00013698,2]
[420128715,1775704246789,-500.0,0.00013698,2]
[420128716,1775704246799,-500.0,0.00013698,2]
[420128717,1775704246811,-500.0,0.00013698,2]
[420128718,1775704246822,-500.0,0.00013698,2]
[420128719,1775704246832,-500.0,0.00013698,2]
[420128720,1775704246842,-500.0,0.00013698,2]
[420128721,1775704246852,-500.0,0.00013698,2]
[420128722,1775704246863,-500.0,0.00013698,2]
[420128723,1775704246873,-500.0,0.00013698,2]
[420128724,1775704246883,-500.0,0.00013698,2]
[420128725,1775704246893,-500.0,0.00013698,2]
[420128726,1775704246903,-500.0,0.00013698,2]
[420128727,1775704246913,-500.0,0.00013698,2]
[420128728,1775704246923,-500.0,0.00013698,2]
[420128729,1775704246934,-500.0,0.00013698,2]
[420128730,1775704246944,-500.0,0.00013698,2]
[420128731,1775704246955,-500.0,0.00013698,2]
[420128732,1775704246966,-500.0,0.00013698,2]
[420128733,1775704247251,-500.0,0.00013698,2]
[420128734,1775704247273,-500.0,0.00013698,2]
[420128735,1775704247283,-500.0,0.00013698,2]
[420128736,1775704247292,-500.0,0.00013698,2]
[420128737,1775704247302,-500.0,0.00013698,2]
[420128738,1775704247311,-500.0,0.00013698,2]
[420128739,1775704247320,-500.0,0.00013698,2]
[420128740,1775704247330,-500.0,0.00013698,2]
[420128741,1775704247340,-500.0,0.00013698,2]
[420128742,1775704247350,-417.61051604,0.00013698,2]
[420128743,1775704247359,-500.0,0.00013698,2]
[420128744,1775704247369,-500.0,0.00013698,2]
[420128745,1775704247378,-500.0,0.00013698,2]
[420128746,1775704247387,-500.0,0.00013698,2]
[420128747,1775704247397,-500.0,0.00013698,2]
[420128748,1775704247406,-500.0,0.00013698,2]
[420128749,1775704247416,-500.0,0.00013698,2]
[420128750,1775704247425,-500.0,0.00013698,2]
[420128751,1775704247435,-532.24925946,0.00013698,2]
[420128752,1775704247444,-500.0,0.00013698,2]
[420128753,1775704247454,-3069.0,0.00013699,2]
[420128754,1775704247463,-150.0,0.00013699,2]
[420128755,1775704247473,-150.0,0.00013699,2]
[420128756,1775704247483,-150.0,0.00013699,2]
[420128757,1775704247493,-1942.46,0.00013699,2]
[420128758,1775704247503,-200.0,0.00013699,2]
[420128759,1775704247512,-151.0,0.00013699,2]
[420128760,1775704247522,-151.0,0.00013699,2]
[420128761,1775704247532,-151.0,0.00013699,2]
[420128762,1775704247541,-151.0,0.00013699,2]
[420128763,1775704247551,-151.0,0.00013699,2]
[420128764,1775704247560,-151.0,0.00013699,2]
[420128765,1775704247570,-151.0,0.00013699,2]
[420128766,1775704247580,-151.0,0.00013699,2]
[420128767,1775704247590,-151.0,0.00013699,2]
[420128768,1775704247600,-151.0,0.00013699,2]
[420128769,1775704247610,-151.0,0.00013699,2]
[420128770,1775704247619,-151.0,0.00013699,2]
[420128771,1775704247629,-151.0,0.00013699,2]
[420128772,1775704247638,-151.0,0.00013699,2]
[420128773,1775704247648,-151.0,0.00013699,2]
[420128774,1775704247657,-151.0,0.00013699,2]
[420128775,1775704247667,-151.0,0.00013699,2]
[420128776,1775704247677,-151.0,0.00013699,2]
[420128777,1775704247686,-290.858153,0.00013699,2]
[420128778,1775704247696,-151.0,0.00013699,2]
[420128779,1775704247705,-151.0,0.00013699,2]
[420128780,1775704247715,-151.0,0.00013699,2]
[420128781,1775704247724,-151.0,0.00013699,2]
[420128782,1775704247734,-151.0,0.00013699,2]
[420128783,1775704247743,-151.0,0.00013699,2]
[420128784,1775704247753,-151.0,0.00013699,2]
[420128785,1775704247763,-151.0,0.00013699,2]
[420128786,1775704247773,-151.0,0.00013699,2]
[420128787,1775704247783,-194.482508,0.00013699,2]
[420128788,1775704247792,-160.341328,0.00013699,2]
[420128789,1775704247803,-160.341328,0.00013699,2]
[420128790,1775704247813,-151.0,0.00013699,2]
[420128791,1775704247823,-160.341328,0.00013699,2]
[420128792,1775704247832,-151.0,0.00013699,2]
[420128793,1775704247842,-160.341328,0.00013699,2]
[420128794,1775704247851,-160.341328,0.00013699,2]
[420128795,1775704247860,-160.341328,0.00013699,2]
[420128796,1775704247869,-160.341328,0.00013699,2]
[420128797,1775704247879,-160.341328,0.00013699,2]
[420128798,1775704247888,-151.0,0.00013699,2]
[420128799,1775704247898,-151.0,0.00013699,2]
[420128800,1775704247908,-151.0,0.00013699,2]
[420128801,1775704247917,-151.0,0.00013699,2]
[420128802,1775704247927,-151.0,0.00013699,2]
[420128803,1775704247936,-151.0,0.00013699,2]
[420128804,1775704247946,-257.369275,0.00013699,2]
[420128805,1775704247955,-151.0,0.00013699,2]
[420128806,1775704247965,-151.0,0.00013699,2]
[420128807,1775704247974,-151.0,0.00013699,2]
[420128808,1775704247983,-151.0,0.00013699,2]
[420128809,1775704247992,-306.931056,0.00013699,2]
[420128810,1775704248002,-306.931056,0.00013699,2]
[420128811,1775704248012,-151.0,0.00013699,2]
[420128812,1775704248021,-151.0,0.00013699,2]
[420128813,1775704248031,-306.931056,0.00013699,2]
[420128814,1775704248040,-306.931056,0.00013699,2]
[420128815,1775704248049,-306.931056,0.00013699,2]
[420128816,1775704248059,-306.931056,0.00013699,2]
[420128817,1775704248068,-306.931056,0.00013699,2]
[420128818,1775704248077,-306.931056,0.00013699,2]
[420128819,1775704248087,-284.122686,0.00013699,2]
[420128820,1775704248097,-284.122686,0.00013699,2]
[420128821,1775704248107,-151.0,0.00013699,2]
[420128822,1775704248116,-284.122686,0.00013699,2]
[420128823,1775704248125,-151.0,0.00013699,2]
[420128824,1775704248135,-151.0,0.00013699,2]
[420128825,1775704248145,-151.0,0.00013699,2]
[420128826,1775704248154,-151.0,0.00013699,2]
[420128827,1775704248164,-284.122686,0.00013699,2]
[420128828,1775704248173,-151.0,0.00013699,2]
[420128829,1775704248182,-284.576853,0.00013699,2]
[420128830,1775704248192,-151.0,0.00013699,2]
[420128831,1775704248201,-151.0,0.00013699,2]
[420128832,1775704248211,-151.0,0.00013699,2]
[420128833,1775704248220,-151.0,0.00013699,2]
[420128834,1775704248229,-151.0,0.00013699,2]
[420128835,1775704248239,-151.0,0.00013699,2]
[420128836,1775704248248,-284.122686,0.00013699,2]
[420128837,1775704248257,-284.122686,0.00013699,2]
[420128838,1775704248267,-284.122686,0.00013699,2]
[420128839,1775704248276,-284.122686,0.00013699,2]
[420128840,1775704248286,-284.122686,0.00013699,2]
[420128841,1775704248295,-284.122686,0.00013699,2]
[420128842,1775704248304,-284.122686,0.00013699,2]
[420128843,1775704248314,-284.122686,0.00013699,2]
[420128844,1775704248323,-151.0,0.00013699,2]
[420128845,1775704248332,-151.0,0.00013699,2]
[420128846,1775704248342,-151.0,0.00013699,2]
[420128847,1775704248351,-151.0,0.00013699,2]
[420128848,1775704248361,-151.0,0.00013699,2]
[420128849,1775704248370,-151.0,0.00013699,2]
[420128850,1775704248379,-151.0,0.00013699,2]
[420128851,1775704248390,-151.0,0.00013699,2]
[420128852,1775704248399,-151.0,0.00013699,2]
[420128853,1775704248408,-151.0,0.00013699,2]
[420128854,1775704248417,-151.0,0.00013699,2]
[420128855,1775704248427,-151.0,0.00013699,2]
[420128856,1775704248436,-283.788223,0.00013699,2]
[420128857,1775704248446,-151.0,0.00013699,2]
[420128858,1775704248455,-151.0,0.00013699,2]
[420128859,1775704248465,-151.0,0.00013699,2]
[420128860,1775704248474,-151.0,0.00013699,2]
[420128861,1775704248483,-151.0,0.00013699,2]
[420128862,1775704248493,-151.0,0.00013699,2]
[420128863,1775704248502,-207.146528,0.00013699,2]
[420128864,1775704248511,-157.594615,0.00013699,2]
[420128865,1775704248520,-151.0,0.00013699,2]
[420128866,1775704248530,-151.0,0.00013699,2]
[420128867,1775704248539,-151.0,0.00013699,2]
[420128868,1775704248548,-151.0,0.00013699,2]
[420128869,1775704248557,-151.0,0.00013699,2]
[420128870,1775704248567,-151.0,0.00013699,2]
[420128871,1775704248576,-151.0,0.00013699,2]
[420128872,1775704248586,-151.0,0.00013699,2]
[420128873,1775704248595,-151.0,0.00013699,2]
[420128874,1775704248604,-151.0,0.00013699,2]
[420128875,1775704248614,-151.0,0.00013699,2]
[420128876,1775704248623,-151.0,0.00013699,2]
[420128877,1775704248632,-151.0,0.00013699,2]
[420128878,1775704248641,-151.0,0.00013699,2]
[420128879,1775704248651,-151.0,0.00013699,2]
[420128880,1775704248660,-151.0,0.00013699,2]
[420128881,1775704248669,-151.0,0.00013699,2]
[420128882,1775704248678,-151.0,0.00013699,2]
[420128883,1775704248688,-151.0,0.00013699,2]
[420128884,1775704248697,-194.56221,0.00013699,2]
[420128885,1775704248706,-186.073294,0.00013699,2]
[420128886,1775704248716,-262.370745,0.00013699,2]
[420128887,1775704248725,-153.899931,0.00013699,2]
[420128888,1775704248734,-151.0,0.00013699,2]
[420128889,1775704248744,-151.0,0.00013699,2]
[420128890,1775704248753,-151.0,0.00013699,2]
[420128891,1775704248763,-151.0,0.00013699,2]
[420128892,1775704248772,-151.0,0.00013699,2]
[420128893,1775704248781,-151.0,0.00013699,2]
[420128894,1775704248790,-151.0,0.00013699,2]
[420128895,1775704248800,-151.0,0.00013699,2]
[420128896,1775704248809,-151.0,0.00013699,2]
[420128897,1775704248819,-151.0,0.00013699,2]
[420128898,1775704248828,-151.0,0.00013699,2]
[420128899,1775704248837,-151.0,0.00013699,2]
[420128900,1775704248847,-151.0,0.00013699,2]
[420128901,1775704248856,-151.0,0.00013699,2]
[420128902,1775704248866,-151.0,0.00013699,2]
[420128903,1775704248876,-151.0,0.00013699,2]
[420128904,1775704248885,-151.0,0.00013699,2]
[420128905,1775704248895,-256.77442,0.00013699,2]
[420128906,1775704248904,-151.0,0.00013699,2]
[420128907,1775704248913,-151.0,0.00013699,2]
[420128908,1775704248923,-151.0,0.00013699,2]
[420128909,1775704248932,-151.0,0.00013699,2]
[420128910,1775704248942,-151.0,0.00013699,2]
[420128911,1775704248952,-151.0,0.00013699,2]
[420128912,1775704248961,-151.0,0.00013699,2]
[420128913,1775704248971,-151.0,0.00013699,2]
[420128914,1775704248980,-151.0,0.00013699,2]
[420128915,1775704248989,-155.245125,0.00013699,2]
[420128916,1775704248999,-151.0,0.00013699,2]
[420128917,1775704249008,-151.0,0.00013699,2]
[420128918,1775704249017,-151.0,0.00013699,2]
[420128919,1775704249027,-151.0,0.00013699,2]
[420128920,1775704249036,-151.0,0.00013699,2]
[420128921,1775704249046,-151.0,0.00013699,2]
[420128922,1775704249055,-172.259333,0.00013699,2]
[420128923,1775704249064,-151.0,0.00013699,2]
[420128924,1775704249073,-151.0,0.00013699,2]
[420128925,1775704249083,-151.0,0.00013699,2]
[420128926,1775704249092,-151.0,0.00013699,2]
[420128927,1775704249102,-151.0,0.00013699,2]
[420128928,1775704249111,-151.0,0.00013699,2]
[420128929,1775704249121,-151.0,0.00013699,2]
[420128930,1775704249130,-151.0,0.00013699,2]
[420128931,1775704249140,-151.0,0.00013699,2]
[420128932,1775704249149,-151.0,0.00013699,2]
[420128933,1775704249159,-151.0,0.00013699,2]
[420128934,1775704249168,-151.0,0.00013699,2]
[420128935,1775704249178,-151.0,0.00013699,2]
[420128936,1775704249188,-151.0,0.00013699,2]
[420128937,1775704249198,-152.086945,0.00013699,2]
[420128938,1775704249207,-151.0,0.00013699,2]
[420128939,1775704249216,-151.0,0.00013699,2]
[420128940,1775704249225,-151.0,0.00013699,2]
[420128941,1775704249235,-151.0,0.00013699,2]
[420128942,1775704249244,-151.0,0.00013699,2]
[420128943,1775704249253,-151.0,0.00013699,2]
[420128944,1775704249263,-151.0,0.00013699,2]
[420128945,1775704249272,-151.0,0.00013699,2]
[420128946,1775704249281,-151.0,0.00013699,2]
[420128947,1775704249291,-224.969732,0.00013699,2]
[420128948,1775704249301,-151.0,0.00013699,2]
[420128949,1775704249311,-151.0,0.00013699,2]
[420128950,1775704249320,-151.0,0.00013699,2]
[420128951,1775704249329,-151.0,0.00013699,2]
[420128952,1775704249339,-151.0,0.00013699,2]
[420128953,1775704249348,-151.0,0.00013699,2]
[420128954,1775704249358,-151.0,0.00013699,2]
[420128955,1775704249367,-151.0,0.00013699,2]
[420128956,1775704249377,-151.0,0.00013699,2]
[420128957,1775704249387,-151.0,0.00013699,2]
[420128958,1775704249396,-151.0,0.00013699,2]
[420128959,1775704249405,-151.0,0.00013699,2]
[420128960,1775704249753,-151.0,0.00013699,2]